fUSD/lending_fUSD_20260201
["ID","MTS","AMOUNT","RATE_DAILY","PERIOD"]
[404220946,1769974544760,-151.0,0.00038356,120]
[404220947,1769974544818,-225.616962,0.00038356,90]
[404220948,1769974544877,-255.463883,0.00038356,120]
[404220949,1769974544937,-225.616962,0.00038356,90]
[404220950,1769974544996,-225.616962,0.00038356,90]
[404220951,1769974545055,-225.616962,0.00038356,90]
[404220952,1769974545111,-225.616962,0.00038356,90]
[404220953,1769974545166,-225.616962,0.00038356,90]
[404220954,1769974545223,-225.616962,0.00038356,90]
[404220955,1769974545279,-225.616962,0.00038356,90]
[404220956,1769974545335,-225.616962,0.00038356,90]
[404220957,1769974545391,-325.986168,0.00039041,120]
[404220958,1769974545447,-325.986168,0.00039041,120]
[404220959,1769974545504,-325.986168,0.00039041,120]
[404220960,1769974545560,-325.986168,0.00039041,120]
[404220961,1769974545616,-325.986168,0.00039041,120]
[404220962,1769974545671,-325.986168,0.00039041,120]
[404220963,1769974545728,-325.986168,0.00039041,120]
[404220964,1769974545783,-325.986168,0.00039041,120]
[404220965,1769974545838,-325.986168,0.00039041,120]
[404220966,1769974545894,-325.986168,0.00039041,120]
[404220967,1769974545950,-325.986168,0.00039041,120]
[404220968,1769974546008,-325.986168,0.00039041,120]
[404220969,1769974546065,-325.986168,0.00039041,120]
[404220970,1769974546123,-325.986168,0.00039041,120]
[404220971,1769974546178,-325.986168,0.00039041,120]
[404220972,1769974546234,-325.986168,0.00039041,120]
[404220973,1769974546293,-301.164871,0.00039298,120]
[404220974,1769974546351,-253.950691,0.00039298,120]
[404220975,1769974546405,-253.950691,0.00039298,120]
[404220976,1769974546461,-151.0,0.00039298,120]
[404220977,1769974546516,-253.950691,0.00039298,120]
[404220978,1769974546571,-151.0,0.00039298,120]
[404220979,1769974546629,-253.950691,0.00039298,120]
[404220980,1769974546684,-151.0,0.00039298,120]
[404220981,1769974546738,-151.0,0.00039298,120]
[404220982,1769974546793,-151.0,0.00039298,120]
[404220983,1769974546850,-151.0,0.00039298,120]
[404220984,1769974546906,-151.0,0.000393,120]
[404220985,1769974546961,-151.0,0.000393,120]
[404220986,1769974547017,-151.0,0.000393,120]
[404220987,1769974547313,-158.01,0.000394,30]
[404220988,1769974547373,-152.0,0.0004,120]
[404220989,1769974547428,-250.0,0.0004,45]
[404220990,1769974547484,-153.0,0.0004,120]
[404220991,1769974547543,-298.4395386,0.0004,120]
[404220992,1769974547599,-150.0,0.0004,120]
[404220993,1769974547655,-300.020311,0.00040315,100]
[404220994,1769974547712,-250.0,0.000405,45]
[404220995,1769974547769,-153.0,0.000407,120]
[404220996,1769974547825,-152.0,0.000408,120]
[404220997,1769974547882,-155.12,0.0004093,120]
[404220998,1769974547940,-757.077,0.00040994,59]
[404220999,1769974547998,-158.01,0.00041,30]
[404221000,1769974548056,-250.0,0.00041,45]
[404221001,1769974548114,-281.1552822,0.00041,120]
[404221002,1769974548172,-155.12,0.0004103,120]
[404221003,1769974548231,-272.73,0.00041068,120]
[404221004,1769974548296,-272.99359949,0.00041095,120]
[404221005,1769974548352,-229.36,0.00041096,120]
[404221006,1769974548407,-150.0,0.00041096,120]
[404221007,1769974548463,-289.48,0.000411,120]
[404221008,1769974548520,-203.99,0.000411,120]
[404221009,1769974548577,-158.65962292,0.000411,120]
[404221010,1769974548633,-158.65962292,0.000411,120]
[404221011,1769974548689,-158.65,0.000411,120]
[404221012,1769974548747,-204.86012053,0.000411,120]
[404221013,1769974548802,-204.86,0.000411,120]
[404221014,1769974548857,-159.3356493,0.000411,120]
[404221015,1769974548914,-159.3356493,0.000411,120]
[404221016,1769974548971,-159.3356493,0.000411,120]
[404221017,1769974549027,-159.3356493,0.000411,120]
[404221018,1769974549082,-159.3356493,0.000411,120]
[404221019,1769974549139,-159.33,0.000411,120]
[404221020,1769974549195,-155.12,0.0004113,120]
[404221021,1769974549251,-254.16159758,0.00041151,120]
[404221022,1769974549305,-151.0,0.00041205,120]
[404221023,1769974549361,-180.25,0.00041205,30]
[404221024,1769974549415,-171.76,0.00041205,30]
[404221025,1769974549470,-469.44,0.00041205,30]
[404221026,1769974549525,-170.77,0.00041205,30]
[404221027,1769974549580,-360.37,0.00041205,30]
[404221028,1769974549643,-468.84,0.00041205,30]
[404221029,1769974549697,-200.0,0.0004121,120]
[404221030,1769974549952,-155.12,0.0004123,120]
[404221031,1769974550012,-153.0,0.000413,120]
[404221032,1769974550070,-155.12,0.0004133,120]
[404221033,1769974550128,-155.12,0.0004143,120]
[404221034,1769974550186,-264.049633,0.00041488,120]
[404221035,1769974550247,-206.796882,0.00041488,120]
[404221036,1769974550309,-160.969174,0.00041488,120]
[404221037,1769974550366,-152.0,0.000415,120]
[404221038,1769974550428,-175.22,0.000415,30]
[404221039,1769974550485,-163.14848134,0.000415,45]
[404221040,1769974550543,-155.12,0.0004153,120]
[404221041,1769974550602,-155.12,0.0004163,120]
[404221042,1769974550661,-155.12,0.0004173,120]
[404221043,1769974550718,-203.21,0.00041815,120]
[404221044,1769974550776,-155.12,0.0004183,120]
[404221045,1769974550835,-442.34,0.00041902,120]
[404221046,1769974550893,-150.6690404,0.00041917,120]
[404221047,1769974550952,-155.12,0.0004193,120]
[404221048,1769974551016,-199.999999,0.00042,120]
[404221049,1769974551077,-153.0,0.00042,120]
[404221050,1769974551136,-150.0,0.00042,30]
[404221051,1769974551200,-309.36,0.00042027,30]
[404221052,1769974551262,-155.12,0.0004203,120]
[404221053,1769974551325,-151.0,0.00042082,120]
[404221054,1769974551383,-151.0,0.00042082,120]
[404221055,1769974551441,-151.0,0.00042082,120]
[404221056,1769974551501,-151.0,0.00042082,120]
[404221057,1769974551560,-151.0,0.00042082,120]
[404221058,1769974551618,-151.0,0.00042082,120]
[404221059,1769974551676,-151.0,0.00042082,120]
[404221060,1769974551733,-151.0,0.00042082,120]
[404221061,1769974551790,-151.0,0.00042082,120]
[404221062,1769974551849,-151.0,0.00042082,120]
[404221063,1769974551907,-208.774201,0.00042082,120]
[404221064,1769974551966,-155.12,0.0004213,120]
[404221065,1769974552026,-155.12,0.0004223,120]
[404221066,1769974552086,-152.0,0.000423,120]
[404221067,1769974552154,-155.12,0.0004233,120]
[404221068,1769974552215,-150.0,0.00042359,120]
[404221069,1769974552275,-155.12,0.0004243,120]
[404221070,1769974552335,-409.53986734,0.00042438,120]
[404221071,1769974552394,-150.0,0.00042466,120]
[404221072,1769974552451,-173.0500197,0.00042474,30]
[404221073,1769974552508,-2021.13373656,0.00042475,120]
[404221074,1769974552566,-150.0,0.00042521,120]
[404221075,1769974552628,-200.0,0.0004253,120]
[404221076,1769974552687,-155.12,0.0004253,120]
[404221077,1769974552746,-150.0,0.00042576,120]
[404221078,1769974552805,-153.0,0.000426,120]
[404221079,1769974552864,-155.12,0.0004263,120]
[404221080,1769974552925,-150.0,0.0004263,120]
[404221081,1769974552986,-150.0,0.00042655,120]
[404221082,1769974553046,-474.30326683,0.00042666,120]
[404221083,1769974553110,-286.77007535,0.00042685,120]
[404221084,1769974553172,-155.12,0.0004273,120]
[404221085,1769974553234,-151.0,0.00042737,120]
[404221086,1769974553298,-154.41,0.0004274,91]
[404221087,1769974553367,-158.01,0.000428,30]
[404221088,1769974553425,-297.29810929,0.000428,120]
[404221089,1769974553488,-155.12,0.0004283,120]
[404221090,1769974553553,-155.12,0.0004293,120]
[404221091,1769974553616,-152.0,0.00043,120]
[404221092,1769974553678,-155.12,0.0004303,120]
[404221093,1769974553739,-155.12,0.0004313,120]
[404221094,1769974553802,-150.0,0.00043135,120]
[404221095,1769974553864,-150.0,0.00043191,120]
[404221096,1769974553926,-155.12,0.0004323,120]
[404221097,1769974553988,-280.26866769,0.00043287,60]
[404221098,1769974554048,-403.57071443,0.00043287,120]
[404221099,1769974554110,-615.37495032,0.00043287,120]
[404221100,1769974554171,-897.22,0.00043287,120]
[404221101,1769974554231,-897.22,0.00043287,120]
[404221102,1769974554300,-897.22,0.00043287,120]
[404221103,1769974554359,-897.22,0.00043287,120]
[404221104,1769974554418,-897.22,0.00043287,120]
[404221105,1769974554477,-897.22,0.00043287,120]
[404221106,1769974554536,-897.22,0.00043287,120]
[404221107,1769974554595,-897.22,0.00043287,120]
[404221108,1769974554654,-234.943324,0.00043287,120]
[404221109,1769974554713,-897.22,0.00043287,120]
[404221110,1769974554772,-897.22,0.00043287,120]
[404221111,1769974554830,-897.22,0.00043287,120]
[404221112,1769974554891,-897.22,0.00043287,120]
[404221113,1769974554951,-897.22,0.00043287,120]
[404221114,1769974555011,-897.22,0.00043287,120]
[404221115,1769974555071,-897.22,0.00043287,120]
[404221116,1769974555129,-897.22,0.00043287,120]
[404221117,1769974555187,-648.03951171,0.00043287,120]
[404221118,1769974555248,-897.22,0.00043287,120]
[404221119,1769974555307,-897.22,0.00043287,120]
[404221120,1769974555365,-897.22,0.00043287,120]
[404221121,1769974555422,-897.22,0.00043287,120]
[404221122,1769974555479,-317.85124446,0.00043287,120]
[404221123,1769974555537,-897.22,0.00043287,120]
[404221124,1769974555593,-897.22,0.00043287,120]
[404221125,1769974555802,-897.22,0.00043287,120]
[404221126,1769974555858,-897.2544882,0.00043287,120]
[404221127,1769974555915,-630.68959709,0.00043287,120]
[404221128,1769974555971,-559.23151848,0.00043287,120]
[404221129,1769974556027,-151.0,0.00043287,120]
[404221130,1769974556083,-151.0,0.00043287,30]
[404221131,1769974556143,-280.66258149,0.00043287,120]
[404221132,1769974556199,-160.42017044,0.00043287,120]
[404221133,1769974556255,-432.82143271,0.00043287,120]
[404221134,1769974556310,-524.78792879,0.00043287,120]
[404221135,1769974556366,-455.61631528,0.00043287,120]
[404221136,1769974556420,-530.58731531,0.00043287,120]
[404221137,1769974556475,-232.186534,0.00043287,120]
[404221138,1769974556530,-335.33166936,0.00043287,120]
[404221139,1769974556584,-477.51175272,0.00043287,120]
[404221140,1769974556641,-531.91569249,0.00043287,120]
[404221141,1769974556697,-565.51,0.00043287,120]
[404221142,1769974556754,-565.51,0.00043287,120]
[404221143,1769974556812,-565.51,0.00043287,120]
[404221144,1769974556867,-565.51,0.00043287,120]
[404221145,1769974556927,-565.51,0.00043287,120]
[404221146,1769974556987,-565.51,0.00043287,120]
[404221147,1769974557048,-565.51,0.00043287,120]
[404221148,1769974557104,-565.51,0.00043287,120]
[404221149,1769974557161,-565.51,0.00043287,120]
[404221150,1769974557218,-335.70244711,0.00043287,120]
[404221151,1769974557272,-565.51,0.00043287,120]
[404221152,1769974557329,-565.51,0.00043287,120]
[404221153,1769974557385,-565.51,0.00043287,120]
[404221154,1769974557440,-565.51,0.00043287,120]
[404221155,1769974557495,-612.43399656,0.00043287,120]
[404221156,1769974557551,-565.51,0.00043287,120]
[404221157,1769974557606,-565.51,0.00043287,120]
[404221158,1769974557662,-565.51,0.00043287,120]
[404221159,1769974557717,-231.77587019,0.00043287,120]
[404221160,1769974557771,-565.51,0.00043287,120]
[404221161,1769974557828,-565.51,0.00043287,120]
[404221162,1769974557883,-565.51,0.00043287,120]
[404221163,1769974557938,-565.51,0.00043287,120]
[404221164,1769974557995,-565.51,0.00043287,120]
[404221165,1769974558050,-565.51,0.00043287,120]
[404221166,1769974558105,-565.51,0.00043287,120]
[404221167,1769974558161,-565.74835322,0.00043287,120]
[404221168,1769974558216,-587.80626335,0.00043287,120]
[404221169,1769974558272,-607.12567012,0.00043287,120]
[404221170,1769974558330,-485.77316864,0.00043287,120]
[404221171,1769974558388,-313.67542001,0.00043287,120]
[404221172,1769974558446,-528.74968597,0.00043287,120]
[404221173,1769974558507,-199.11424928,0.00043287,120]
[404221174,1769974558564,-355.85981422,0.00043287,120]
[404221175,1769974558621,-529.91783149,0.00043287,120]
[404221176,1769974558680,-416.74377286,0.00043287,120]
[404221177,1769974558737,-588.71998276,0.00043287,120]
[404221178,1769974558793,-505.21750001,0.00043287,120]
[404221179,1769974558851,-303.37549408,0.00043287,120]
[404221180,1769974558909,-458.66722326,0.00043287,120]
[404221181,1769974558967,-450.11311983,0.00043287,120]
[404221182,1769974559023,-158.50181027,0.00043287,120]
[404221183,1769974559080,-240.1210915,0.00043287,120]
[404221184,1769974559138,-427.2524578,0.00043287,120]
[404221185,1769974559195,-568.05639611,0.00043287,120]
[404221186,1769974559253,-500.0,0.00043287,120]
[404221187,1769974559309,-500.0,0.00043287,120]
[404221188,1769974559365,-500.0,0.00043287,120]
[404221189,1769974559419,-500.0,0.00043287,120]
[404221190,1769974559473,-500.0,0.00043287,120]
[404221191,1769974559528,-500.0,0.00043287,120]
[404221192,1769974559584,-500.0,0.00043287,120]
[404221193,1769974559638,-158.59876847,0.00043287,120]
[404221194,1769974559693,-500.0,0.00043287,120]
[404221195,1769974559747,-500.0,0.00043287,120]
[404221196,1769974559803,-500.0,0.00043287,120]
[404221197,1769974559858,-500.0,0.00043287,120]
[404221198,1769974559915,-500.0,0.00043287,120]
[404221199,1769974559973,-219.12675808,0.00043287,120]
[404221200,1769974560032,-485.01455016,0.00043287,120]
[404221201,1769974560090,-555.02236519,0.00043287,120]
[404221202,1769974560150,-547.25920609,0.00043287,120]
[404221203,1769974560211,-554.35099366,0.00043287,120]
[404221204,1769974560273,-276.71690342,0.00043287,120]
[404221205,1769974560335,-441.73932749,0.00043287,120]
[404221206,1769974560401,-348.24897453,0.00043287,120]
[404221207,1769974560460,-274.21153561,0.00043287,120]
[404221208,1769974560517,-258.00335724,0.00043287,120]
[404221209,1769974560574,-457.24898546,0.00043287,120]
[404221210,1769974560631,-379.38736158,0.00043287,120]
[404221211,1769974560687,-288.95658414,0.00043287,120]
[404221212,1769974560743,-330.53881395,0.00043287,120]
[404221213,1769974560801,-380.30608228,0.00043287,120]
[404221214,1769974560859,-232.76795327,0.00043287,120]
[404221215,1769974560918,-412.07845265,0.00043287,120]
[404221216,1769974560976,-500.0,0.00043287,120]
[404221217,1769974561035,-500.0,0.00043287,120]
[404221218,1769974561094,-500.0,0.00043287,120]
[404221219,1769974561155,-500.0,0.00043287,120]
[404221220,1769974561342,-500.0,0.00043287,120]
[404221221,1769974561401,-500.0,0.00043287,120]
[404221222,1769974561459,-500.0,0.00043287,120]
[404221223,1769974561516,-500.0,0.00043287,120]
[404221224,1769974561574,-500.0,0.00043287,120]
[404221225,1769974561631,-500.0,0.00043287,120]
[404221226,1769974561688,-322.65511023,0.00043287,120]
[404221227,1769974561746,-500.0,0.00043287,120]
[404221228,1769974561810,-287.89396674,0.00043287,120]
[404221229,1769974561868,-500.0,0.00043287,120]
[404221230,1769974561927,-500.0,0.00043287,120]
[404221231,1769974561985,-500.0,0.00043287,120]
[404221232,1769974562044,-500.0,0.00043287,120]
[404221233,1769974562101,-349.62498064,0.00043287,120]
[404221234,1769974562157,-483.96319133,0.00043287,60]
[404221235,1769974562215,-326.50752052,0.00043287,120]
[404221236,1769974562273,-342.29178681,0.00043287,120]
[404221237,1769974562333,-171.20182571,0.00043287,120]
[404221238,1769974562395,-252.31760636,0.00043287,120]
[404221239,1769974562452,-255.35850929,0.00043287,120]
[404221240,1769974562512,-444.62854066,0.00043287,120]
[404221241,1769974562572,-154.391949,0.00043287,120]
[404221242,1769974562629,-366.0152021,0.00043287,120]
[404221243,1769974562687,-226.12254653,0.00043287,120]
[404221244,1769974562746,-346.22140637,0.00043287,120]
[404221245,1769974562805,-404.56363971,0.00043287,120]
[404221246,1769974562863,-154.23128,0.00043287,120]
[404221247,1769974562921,-151.0,0.00043287,120]
[404221248,1769974562980,-441.09514217,0.00043287,120]
[404221249,1769974563039,-297.37392834,0.00043287,120]
[404221250,1769974563098,-343.23895705,0.00043287,120]
[404221251,1769974563158,-271.03199905,0.00043287,120]
[404221252,1769974563217,-420.29503071,0.00043287,120]
[404221253,1769974563277,-365.11887074,0.00043287,120]
[404221254,1769974563337,-452.83815701,0.00043287,120]
[404221255,1769974563399,-264.07410048,0.00043287,120]
[404221256,1769974563457,-483.03425145,0.00043287,120]
[404221257,1769974563516,-226.12845917,0.00043287,120]
[404221258,1769974563577,-281.88466598,0.00043287,120]
[404221259,1769974563640,-513.01255356,0.00043287,120]
[404221260,1769974563701,-432.5351641,0.00043287,120]
[404221261,1769974563766,-481.10866582,0.00043287,120]
[404221262,1769974563828,-384.27155763,0.00043287,120]
[404221263,1769974563893,-409.27170226,0.00043287,120]
[404221264,1769974563955,-358.93053634,0.00043287,120]
[404221265,1769974564018,-254.32,0.00043287,120]
[404221266,1769974564080,-193.36396446,0.00043287,120]
[404221267,1769974564141,-173.20472395,0.00043287,120]
[404221268,1769974564200,-181.96436803,0.00043287,120]
[404221269,1769974564261,-372.64,0.00043287,120]
[404221270,1769974564321,-227.99392215,0.00043287,120]
[404221271,1769974564379,-320.16072855,0.00043287,120]
[404221272,1769974564441,-414.48727211,0.00043287,120]
[404221273,1769974564504,-151.0,0.00043287,120]
[404221274,1769974564568,-153.517542,0.00043287,120]
[404221275,1769974564631,-183.16145397,0.00043287,120]
[404221276,1769974564693,-482.97199061,0.00043287,120]
[404221277,1769974564752,-400.0,0.00043287,120]
[404221278,1769974564811,-404.76893989,0.00043287,120]
[404221279,1769974564871,-366.22566659,0.00043287,120]
[404221280,1769974564933,-197.41843305,0.00043287,120]
[404221281,1769974564992,-238.05464142,0.00043287,120]
[404221282,1769974565052,-447.4873541,0.00043287,120]
[404221283,1769974565111,-186.07497509,0.00043287,120]
[404221284,1769974565169,-423.86771587,0.00043287,120]
[404221285,1769974565226,-316.03960021,0.00043287,120]
[404221286,1769974565284,-361.68489848,0.00043287,120]
[404221287,1769974565344,-304.65105447,0.00043287,120]
[404221288,1769974565406,-431.65545692,0.00043287,120]
[404221289,1769974565466,-178.5536168,0.00043287,120]
[404221290,1769974565526,-500.0,0.00043287,120]
[404221291,1769974565586,-500.0,0.00043287,120]
[404221292,1769974565645,-500.0,0.00043287,120]
[404221293,1769974565703,-500.0,0.00043287,120]
[404221294,1769974565762,-200.0,0.00043287,120]
[404221295,1769974565820,-504.48377953,0.00043287,120]
[404221296,1769974565879,-452.79848371,0.00043287,120]
[404221297,1769974565939,-289.56977689,0.00043287,120]
[404221298,1769974565998,-201.51790119,0.00043287,120]
[404221299,1769974566056,-165.38341994,0.00043287,120]
[404221300,1769974566116,-377.86858473,0.00043287,120]
[404221301,1769974566174,-486.9846384,0.00043287,120]
[404221302,1769974566232,-206.78102637,0.00043287,120]
[404221303,1769974566294,-369.47119028,0.00043287,120]
[404221304,1769974566354,-392.60937391,0.00043287,120]
[404221305,1769974566414,-500.0,0.00043287,120]
[404221306,1769974566471,-500.0,0.00043287,120]
[404221307,1769974566530,-387.17836476,0.00043287,120]
[404221308,1769974566588,-418.77438061,0.00043287,120]
[404221309,1769974566646,-178.21102561,0.00043287,120]
[404221310,1769974566705,-259.47805932,0.00043287,120]
[404221311,1769974566764,-354.66661644,0.00043287,120]
[404221312,1769974566822,-340.34878097,0.00043287,120]
[404221313,1769974566881,-175.22511957,0.00043287,120]
[404221314,1769974566942,-431.82277007,0.00043287,120]
[404221315,1769974567143,-436.98357196,0.00043287,120]
[404221316,1769974567204,-339.86083043,0.00043287,120]
[404221317,1769974567265,-411.62917003,0.00043287,120]
[404221318,1769974567327,-332.43739283,0.00043287,120]
[404221319,1769974567388,-361.66363343,0.00043287,120]
[404221320,1769974567448,-395.56352868,0.00043287,120]
[404221321,1769974567508,-422.46781029,0.00043287,120]
[404221322,1769974567570,-324.92372945,0.00043287,120]
[404221323,1769974567632,-500.0,0.00043287,120]
[404221324,1769974567693,-500.0,0.00043287,120]
[404221325,1769974567753,-500.0,0.00043287,120]
[404221326,1769974567813,-500.0,0.00043287,120]
[404221327,1769974567874,-500.0,0.00043287,120]
[404221328,1769974567936,-500.0,0.00043287,120]
[404221329,1769974567998,-500.0,0.00043287,120]
[404221330,1769974568061,-386.1997122,0.00043287,120]
[404221331,1769974568125,-500.0,0.00043287,120]
[404221332,1769974568189,-500.0,0.00043287,120]
[404221333,1769974568253,-500.0,0.00043287,120]
[404221334,1769974568316,-500.0,0.00043287,120]
[404221335,1769974568378,-500.0,0.00043287,120]
[404221336,1769974568440,-500.0,0.00043287,120]
[404221337,1769974568503,-500.0,0.00043287,120]
[404221338,1769974568565,-500.0,0.00043287,120]
[404221339,1769974568629,-351.2422578,0.00043287,120]
[404221340,1769974568693,-500.0,0.00043287,120]
[404221341,1769974568757,-500.0,0.00043287,120]
[404221342,1769974568827,-500.0,0.00043287,120]
[404221343,1769974568891,-500.0,0.00043287,120]
[404221344,1769974568956,-500.0,0.00043287,120]
[404221345,1769974569023,-500.0,0.00043287,120]
[404221346,1769974569088,-466.53373413,0.00043287,120]
[404221347,1769974569156,-212.12029606,0.00043287,120]
[404221348,1769974569220,-469.89347724,0.00043287,120]
[404221349,1769974569284,-485.33142892,0.00043287,120]
[404221350,1769974569347,-221.95000325,0.00043287,120]
[404221351,1769974569413,-366.04992893,0.00043287,120]
[404221352,1769974569474,-294.33903724,0.00043287,120]
[404221353,1769974569536,-537.1567046,0.00043287,120]
[404221354,1769974569599,-184.82574032,0.00043287,120]
[404221355,1769974569662,-619.8142646,0.00043287,120]
[404221356,1769974569733,-594.03925218,0.00043287,120]
[404221357,1769974569800,-151.0,0.00043287,120]
[404221358,1769974569863,-221.60636472,0.00043287,120]
[404221359,1769974569927,-187.8498937,0.00043287,120]
[404221360,1769974569991,-500.0,0.00043287,120]
[404221361,1769974570055,-500.0,0.00043287,120]
[404221362,1769974570118,-500.0,0.00043287,120]
[404221363,1769974570179,-500.0,0.00043287,120]
[404221364,1769974570241,-500.0,0.00043287,120]
[404221365,1769974570306,-500.0,0.00043287,120]
[404221366,1769974570374,-500.0,0.00043287,120]
[404221367,1769974570436,-500.0,0.00043287,120]
[404221368,1769974570499,-500.0,0.00043287,120]
[404221369,1769974570565,-500.0,0.00043287,120]
[404221370,1769974570626,-500.0,0.00043287,120]
[404221371,1769974570691,-500.0,0.00043287,120]
[404221372,1769974570753,-500.0,0.00043287,120]
[404221373,1769974570814,-500.0,0.00043287,120]
[404221374,1769974570876,-500.0,0.00043287,120]
[404221375,1769974570939,-500.0,0.00043287,120]
[404221376,1769974571000,-167.30993921,0.00043287,120]
[404221377,1769974571065,-246.15755633,0.00043287,120]
[404221378,1769974571126,-201.71503757,0.00043287,120]
[404221379,1769974571187,-517.260481,0.00043287,120]
[404221380,1769974571257,-460.76297017,0.00043287,120]
[404221381,1769974571320,-151.0,0.00043287,120]
[404221382,1769974571383,-503.11109135,0.00043287,120]
[404221383,1769974571446,-258.88240469,0.00043287,120]
[404221384,1769974571507,-288.82364259,0.00043287,120]
[404221385,1769974571570,-358.76931348,0.00043287,120]
[404221386,1769974571632,-375.13632991,0.00043287,120]
[404221387,1769974571694,-500.0,0.00043287,120]
[404221388,1769974571760,-500.0,0.00043287,120]
[404221389,1769974571821,-500.0,0.00043287,120]
[404221390,1769974571883,-500.0,0.00043287,120]
[404221391,1769974571947,-500.0,0.00043287,120]
[404221392,1769974572010,-500.0,0.00043287,120]
[404221393,1769974572075,-500.0,0.00043287,120]
[404221394,1769974572138,-500.0,0.00043287,120]
[404221395,1769974572202,-500.0,0.00043287,120]
[404221396,1769974572268,-500.0,0.00043287,120]
[404221397,1769974572331,-500.0,0.00043287,120]
[404221398,1769974572392,-323.16866959,0.00043287,120]
[404221399,1769974572455,-183.19220521,0.00043287,120]
[404221400,1769974572516,-500.0,0.00043287,120]
[404221401,1769974572578,-500.0,0.00043287,120]
[404221402,1769974572641,-500.0,0.00043287,120]
[404221403,1769974572703,-500.0,0.00043287,120]
[404221404,1769974572770,-500.0,0.00043287,120]
[404221405,1769974572832,-500.0,0.00043287,120]
[404221406,1769974572895,-500.0,0.00043287,120]
[404221407,1769974572958,-500.0,0.00043287,120]
[404221408,1769974573020,-500.0,0.00043287,120]
[404221409,1769974573082,-500.0,0.00043287,120]
[404221410,1769974573344,-500.0,0.00043287,120]
[404221411,1769974573408,-500.0,0.00043287,120]
[404221412,1769974573468,-500.0,0.00043287,120]
[404221413,1769974573531,-500.0,0.00043287,120]
[404221414,1769974573592,-500.0,0.00043287,120]
[404221415,1769974573666,-500.0,0.00043287,120]
[404221416,1769974573728,-643.05338738,0.00043287,120]
[404221417,1769974573791,-341.96722012,0.00043287,120]
[404221418,1769974573853,-153.62925306,0.00043287,120]
[404221419,1769974573918,-302.07793857,0.00043287,120]
[404221420,1769974573987,-226.46445109,0.00043287,120]
[404221421,1769974574057,-338.64903873,0.00043287,120]
[404221422,1769974574126,-409.96777011,0.00043287,120]
[404221423,1769974574190,-332.18376045,0.00043287,120]
[404221424,1769974574255,-267.67667865,0.00043287,120]
[404221425,1769974574316,-310.16193032,0.00043287,120]
[404221426,1769974574378,-500.0,0.00043287,120]
[404221427,1769974574437,-419.88170996,0.00043287,120]
[404221428,1769974574497,-500.0,0.00043287,120]
[404221429,1769974574558,-500.0,0.00043287,120]
[404221430,1769974574622,-500.0,0.00043287,120]
[404221431,1769974574686,-500.0,0.00043287,120]
[404221432,1769974574750,-500.0,0.00043287,120]
[404221433,1769974574813,-500.0,0.00043287,120]
[404221434,1769974574878,-500.0,0.00043287,120]
[404221435,1769974574941,-500.0,0.00043287,120]
[404221436,1769974575006,-500.0,0.00043287,120]
[404221437,1769974575072,-500.0,0.00043287,30]
[404221438,1769974575137,-500.0,0.00043287,120]
[404221439,1769974575202,-500.0,0.00043287,30]
[404221440,1769974575268,-500.0,0.00043287,120]
[404221441,1769974575332,-414.71781927,0.00043287,30]
[404221442,1769974575396,-500.0,0.00043287,120]
[404221443,1769974575458,-500.0,0.00043287,120]
[404221444,1769974575519,-210.2375346,0.00043287,120]
[404221445,1769974575581,-500.0,0.00043287,120]